[Event "Titled Tuesday Blitz May 30 Late 2023"]
[White "Prem, Pranav"]
[Black "Stachanczyk, Jacek"]
[WhiteFideId "30901057"]
[BlackFideId "1116657"]
[WhiteElo "1970"]
[BlackElo "2084"]
[Result "1-0"]
[Round "02"]
[TimeControl "180+2"]
[Date "2023.05.31"]
[WhiteClock "0:01:32"]
[BlackClock "0:00:44"]

1. d4 {[%clk 0:03:00]}  Nf6 {[%clk 0:02:57]} 2. c4 {[%clk 0:03:01]}  g6 {[%clk 0:02:57]} 3. Nc3 {[%clk 0:03:01]}  d5 {[%clk 0:02:57]} 4. cxd5 {[%clk 0:03:02]}  Nxd5 {[%clk 0:02:58]} 5. e4 {[%clk 0:03:02]}  Nxc3 {[%clk 0:02:57]} 6. bxc3 {[%clk 0:03:03]}  Bg7 {[%clk 0:02:58]} 7. Bc4 {[%clk 0:03:01]}  c5 {[%clk 0:02:56]} 8. Ne2 {[%clk 0:02:59]}  Nc6 {[%clk 0:02:50]} 9. Be3 {[%clk 0:02:51]}  O-O {[%clk 0:02:47]} 10. O-O {[%clk 0:02:52]}  b6 {[%clk 0:02:44]} 11. Qd2 {[%clk 0:02:50]}  Bb7 {[%clk 0:02:41]} 12. h4 {[%clk 0:02:41]}  Rc8 {[%clk 0:02:26]} 13. Rac1 {[%clk 0:02:40]}  e6 {[%clk 0:02:16]} 14. h5 {[%clk 0:02:26]}  cxd4 {[%clk 0:02:05]} 15. cxd4 {[%clk 0:02:27]}  Qh4 {[%clk 0:02:02]} 16. f3 {[%clk 0:02:12]}  Qxh5 {[%clk 0:01:52]} 17. Nf4 {[%clk 0:02:12]}  Qa5 {[%clk 0:01:47]} 18. Qf2 {[%clk 0:02:03]}  Nxd4 {[%clk 0:01:15]} 19. Bxd4 {[%clk 0:01:57]}  Bxd4 {[%clk 0:01:16]} 20. Qxd4 {[%clk 0:01:57]}  e5 {[%clk 0:01:17]} 21. Qd7 {[%clk 0:01:53]}  Qc5+ {[%clk 0:01:08]} 22. Kh1 {[%clk 0:01:43]}  exf4 {[%clk 0:01:08]} 23. Qxb7 {[%clk 0:01:43]}  Qh5+ {[%clk 0:00:57]} 24. Kg1 {[%clk 0:01:43]}  Qc5+ {[%clk 0:00:53]} 25. Rf2 {[%clk 0:01:42]}  Qe3 {[%clk 0:00:53]} 26. Bxf7+ {[%clk 0:01:35]}  Rxf7 {[%clk 0:00:43]} 27. Qxc8+ {[%clk 0:01:32]}  Kg7 {[%clk 0:00:44]} 28. Qc3+ {[%clk 0:01:32]} 1-0


[Site "https://www.chess.com"]

[Event "Titled Tuesday Blitz May 30 Late 2023"]
[White "Vaglio Munoz, Jaime"]
[Black "D`Arruda, Ricardo D."]
[WhiteFideId "6500145"]
[BlackFideId "100692"]
[WhiteElo "2199"]
[BlackElo "2508"]
[Result "0-1"]
[Round "02"]
[TimeControl "180+2"]
[Date "2023.05.31"]
[WhiteClock "0:00:09"]
[BlackClock "0:00:49"]

1. Nf3 {[%clk 0:03:00]}  d5 {[%clk 0:02:57]} 2. c4 {[%clk 0:02:59]}  Nf6 {[%clk 0:02:56]} 3. cxd5 {[%clk 0:02:59]}  Nxd5 {[%clk 0:02:56]} 4. g3 {[%clk 0:02:59]}  g6 {[%clk 0:02:55]} 5. Bg2 {[%clk 0:02:59]}  Bg7 {[%clk 0:02:56]} 6. O-O {[%clk 0:02:58]}  Nc6 {[%clk 0:02:56]} 7. Nc3 {[%clk 0:02:58]}  Nb6 {[%clk 0:02:56]} 8. d3 {[%clk 0:02:55]}  O-O {[%clk 0:02:56]} 9. Be3 {[%clk 0:02:54]}  e5 {[%clk 0:02:55]} 10. Rc1 {[%clk 0:02:53]}  Be6 {[%clk 0:02:54]} 11. Ng5 {[%clk 0:02:50]}  Bd7 {[%clk 0:02:51]} 12. Nge4 {[%clk 0:02:50]}  Nd4 {[%clk 0:02:45]} 13. Nc5 {[%clk 0:02:47]}  Bc6 {[%clk 0:02:38]} 14. Nxb7 {[%clk 0:02:44]}  Qc8 {[%clk 0:02:30]} 15. Nc5 {[%clk 0:02:42]}  Bxg2 {[%clk 0:02:30]} 16. Kxg2 {[%clk 0:02:42]}  Nd7 {[%clk 0:02:25]} 17. Bxd4 {[%clk 0:02:38]}  exd4 {[%clk 0:02:21]} 18. N3e4 {[%clk 0:02:36]}  Nb6 {[%clk 0:02:16]} 19. b3 {[%clk 0:02:33]}  Re8 {[%clk 0:02:16]} 20. h4 {[%clk 0:02:31]}  h5 {[%clk 0:02:14]} 21. a4 {[%clk 0:02:26]}  Nd5 {[%clk 0:02:14]} 22. Qd2 {[%clk 0:02:21]}  Nc3 {[%clk 0:02:13]} 23. Nxc3 {[%clk 0:02:00]}  dxc3 {[%clk 0:02:14]} 24. Qc2 {[%clk 0:02:00]}  Qf5 {[%clk 0:02:12]} 25. b4 {[%clk 0:01:50]}  a5 {[%clk 0:02:11]} 26. e4 {[%clk 0:01:47]}  Qe5 {[%clk 0:02:07]} 27. f4 {[%clk 0:01:41]}  Qe7 {[%clk 0:02:01]} 28. e5 {[%clk 0:01:29]}  axb4 {[%clk 0:02:00]} 29. d4 {[%clk 0:01:29]}  Qd8 {[%clk 0:01:58]} 30. Qe4 {[%clk 0:01:26]}  Rb8 {[%clk 0:01:55]} 31. d5 {[%clk 0:01:24]}  Bf8 {[%clk 0:01:53]} 32. Nb3 {[%clk 0:01:23]}  Qd7 {[%clk 0:01:49]} 33. a5 {[%clk 0:01:20]}  Qa4 {[%clk 0:01:49]} 34. Rb1 {[%clk 0:01:05]}  Rbd8 {[%clk 0:01:48]} 35. Rfd1 {[%clk 0:01:04]}  Qa2+ {[%clk 0:01:43]} 36. Kh1 {[%clk 0:00:55]}  c2 {[%clk 0:01:43]} 37. Rdc1 {[%clk 0:00:46]}  cxb1=Q {[%clk 0:01:42]} 38. Rxb1 {[%clk 0:00:46]}  Qa4 {[%clk 0:01:33]} 39. Qc4 {[%clk 0:00:43]}  Qd7 {[%clk 0:01:31]} 40. Rd1 {[%clk 0:00:39]}  Qh3+ {[%clk 0:01:28]} 41. Kg1 {[%clk 0:00:39]}  Qxg3+ {[%clk 0:01:28]} 42. Kf1 {[%clk 0:00:38]}  Qf3+ {[%clk 0:01:26]} 43. Ke1 {[%clk 0:00:38]}  Bh6 {[%clk 0:01:23]} 44. Rd4 {[%clk 0:00:35]}  Qg3+ {[%clk 0:01:15]} 45. Ke2 {[%clk 0:00:33]}  Qxh4 {[%clk 0:01:15]} 46. a6 {[%clk 0:00:28]}  Qh2+ {[%clk 0:01:13]} 47. Ke1 {[%clk 0:00:24]}  h4 {[%clk 0:01:14]} 48. Rd2 {[%clk 0:00:17]}  Qh1+ {[%clk 0:01:12]} 49. Ke2 {[%clk 0:00:17]}  h3 {[%clk 0:01:12]} 50. Rd1 {[%clk 0:00:16]}  Qg2+ {[%clk 0:01:12]} 51. Kd3 {[%clk 0:00:16]}  Qxd5+ {[%clk 0:01:08]} 52. Nd4 {[%clk 0:00:16]}  c5 {[%clk 0:01:04]} 53. Qxd5 {[%clk 0:00:11]}  Rxd5 {[%clk 0:01:05]} 54. Ra1 {[%clk 0:00:10]}  Rxd4+ {[%clk 0:01:04]} 55. Ke3 {[%clk 0:00:11]}  Rxe5+ {[%clk 0:01:03]} 56. Kf3 {[%clk 0:00:12]}  Rd3+ {[%clk 0:01:02]} 57. Kg4 {[%clk 0:00:12]}  Re8 {[%clk 0:01:00]} 58. a7 {[%clk 0:00:12]}  Rdd8 {[%clk 0:00:57]} 59. f5 {[%clk 0:00:12]}  b3 {[%clk 0:00:56]} 60. fxg6 {[%clk 0:00:12]}  fxg6 {[%clk 0:00:56]} 61. Ra6 {[%clk 0:00:11]}  Kh7 {[%clk 0:00:55]} 62. a8=Q {[%clk 0:00:11]}  Rxa8 {[%clk 0:00:54]} 63. Rd6 {[%clk 0:00:11]}  h2 {[%clk 0:00:53]} 64. Rd7+ {[%clk 0:00:11]}  Bg7 {[%clk 0:00:52]} 65. Rd1 {[%clk 0:00:10]}  Ra1 {[%clk 0:00:51]} 66. Rd2 {[%clk 0:00:09]}  h1=Q {[%clk 0:00:50]} 67. Rh2+ {[%clk 0:00:09]}  Qxh2 {[%clk 0:00:50]} 68. Kg5 {[%clk 0:00:09]}  Qg3# {[%clk 0:00:49]} 0-1


[Site "https://www.chess.com"]

[Event "Titled Tuesday Blitz May 30 Late 2023"]
[White "Dragomirescu, Robin-Alexandru"]
[Black "Bashkansky, Ethan"]
[WhiteFideId "1213849"]
[BlackFideId "2071533"]
[WhiteElo "2356"]
[BlackElo "2314"]
[Result "1-0"]
[Round "02"]
[TimeControl "180+2"]
[Date "2023.05.31"]
[WhiteClock "0:00:49"]
[BlackClock "0:00:01"]

1. b3 {[%clk 0:03:00]}  f5 {[%clk 0:02:59]} 2. Bb2 {[%clk 0:03:01]}  e6 {[%clk 0:03:00]} 3. c4 {[%clk 0:03:00]}  Nf6 {[%clk 0:03:00]} 4. Nc3 {[%clk 0:03:00]}  b6 {[%clk 0:02:59]} 5. g3 {[%clk 0:02:57]}  Bb7 {[%clk 0:02:59]} 6. Nf3 {[%clk 0:02:58]}  Bxf3 {[%clk 0:02:53]} 7. exf3 {[%clk 0:02:59]}  Be7 {[%clk 0:02:47]} 8. f4 {[%clk 0:02:59]}  O-O {[%clk 0:02:46]} 9. Bg2 {[%clk 0:03:00]}  c6 {[%clk 0:02:46]} 10. O-O {[%clk 0:02:58]}  Na6 {[%clk 0:02:36]} 11. d4 {[%clk 0:02:55]}  Nc7 {[%clk 0:02:32]} 12. d5 {[%clk 0:02:54]}  exd5 {[%clk 0:02:18]} 13. cxd5 {[%clk 0:02:55]}  cxd5 {[%clk 0:02:04]} 14. Nxd5 {[%clk 0:02:55]}  Nfxd5 {[%clk 0:01:57]} 15. Bxd5+ {[%clk 0:02:52]}  Nxd5 {[%clk 0:01:56]} 16. Qxd5+ {[%clk 0:02:52]}  Kh8 {[%clk 0:01:55]} 17. Rad1 {[%clk 0:02:49]}  d6 {[%clk 0:01:52]} 18. Rfe1 {[%clk 0:02:46]}  Rc8 {[%clk 0:01:37]} 19. Rd2 {[%clk 0:02:32]}  Rc7 {[%clk 0:01:27]} 20. h4 {[%clk 0:02:28]}  Rd7 {[%clk 0:01:23]} 21. h5 {[%clk 0:02:25]}  Bf6 {[%clk 0:01:08]} 22. Bxf6 {[%clk 0:02:24]}  Rxf6 {[%clk 0:01:09]} 23. Re6 {[%clk 0:02:18]}  h6 {[%clk 0:00:32]} 24. Kg2 {[%clk 0:02:09]}  Kh7 {[%clk 0:00:22]} 25. Rde2 {[%clk 0:02:05]}  Rxe6 {[%clk 0:00:19]} 26. Rxe6 {[%clk 0:02:02]}  Qf8 {[%clk 0:00:19]} 27. g4 {[%clk 0:01:17]}  Qf7 {[%clk 0:00:10]} 28. g5 {[%clk 0:01:13]}  hxg5 {[%clk 0:00:06]} 29. fxg5 {[%clk 0:01:09]}  Qxh5 {[%clk 0:00:06]} 30. Qxf5+ {[%clk 0:00:57]}  g6 {[%clk 0:00:06]} 31. Rxg6 {[%clk 0:00:50]}  Kh8 {[%clk 0:00:01]} 32. Qf8+ {[%clk 0:00:49]}  Kh7 {[%clk 0:00:01]} 33. Qg8# {[%clk 0:00:49]} 1-0


[Site "https://www.chess.com"]

[Event "Titled Tuesday Blitz May 30 Late 2023"]
[White "ibove"]
[Black "Senft, Sean"]
[BlackFideId "2044960"]
[WhiteElo "2310"]
[BlackElo "1989"]
[Result "0-1"]
[Round "02"]
[TimeControl "180+2"]
[Date "2023.05.31"]
[WhiteClock "0:00:24"]
[BlackClock "0:00:04"]

1. e4 {[%clk 0:03:00]}  c5 {[%clk 0:03:00]} 2. c3 {[%clk 0:02:59]}  d5 {[%clk 0:03:00]} 3. exd5 {[%clk 0:02:59]}  Qxd5 {[%clk 0:03:00]} 4. Nf3 {[%clk 0:02:59]}  Nf6 {[%clk 0:03:00]} 5. Qb3 {[%clk 0:02:59]}  Qxb3 {[%clk 0:02:48]} 6. axb3 {[%clk 0:03:00]}  Nc6 {[%clk 0:02:46]} 7. Bb5 {[%clk 0:02:58]}  Bd7 {[%clk 0:02:46]} 8. O-O {[%clk 0:02:57]}  e6 {[%clk 0:02:45]} 9. Re1 {[%clk 0:02:57]}  Be7 {[%clk 0:02:45]} 10. Na3 {[%clk 0:02:55]}  O-O {[%clk 0:02:43]} 11. Nc2 {[%clk 0:02:55]}  a6 {[%clk 0:02:43]} 12. Bf1 {[%clk 0:02:54]}  Rfd8 {[%clk 0:02:33]} 13. d4 {[%clk 0:02:53]}  cxd4 {[%clk 0:02:34]} 14. Nfxd4 {[%clk 0:02:53]}  Bc5 {[%clk 0:02:30]} 15. Be3 {[%clk 0:02:47]}  Ng4 {[%clk 0:02:26]} 16. Nxc6 {[%clk 0:02:14]}  Nxe3 {[%clk 0:01:37]} 17. Nxd8 {[%clk 0:02:12]}  Nxc2 {[%clk 0:01:32]} 18. Nxb7 {[%clk 0:02:11]}  Be7 {[%clk 0:00:58]} 19. Red1 {[%clk 0:01:38]}  Bc8 {[%clk 0:00:37]} 20. Rxa6 {[%clk 0:00:59]}  Bxb7 {[%clk 0:00:31]} 21. Rxa8+ {[%clk 0:00:59]}  Bxa8 {[%clk 0:00:31]} 22. Bd3 {[%clk 0:00:44]}  Nb4 {[%clk 0:00:17]} 23. cxb4 {[%clk 0:00:44]}  Bxb4 {[%clk 0:00:17]} 24. Kf1 {[%clk 0:00:41]}  Kf8 {[%clk 0:00:17]} 25. Bxh7 {[%clk 0:00:40]}  Bd5 {[%clk 0:00:10]} 26. Bc2 {[%clk 0:00:39]}  Ke7 {[%clk 0:00:10]} 27. f3 {[%clk 0:00:39]}  g5 {[%clk 0:00:10]} 28. Ke2 {[%clk 0:00:39]}  f5 {[%clk 0:00:10]} 29. Rd4 {[%clk 0:00:39]}  Bd6 {[%clk 0:00:10]} 30. Ra4 {[%clk 0:00:40]}  Bxh2 {[%clk 0:00:10]} 31. Ra7+ {[%clk 0:00:39]}  Kf6 {[%clk 0:00:10]} 32. Rh7 {[%clk 0:00:40]}  Bd6 {[%clk 0:00:09]} 33. Rh1 {[%clk 0:00:39]}  g4 {[%clk 0:00:10]} 34. Rd1 {[%clk 0:00:38]}  Ke5 {[%clk 0:00:07]} 35. fxg4 {[%clk 0:00:38]}  fxg4 {[%clk 0:00:07]} 36. Re1 {[%clk 0:00:35]}  Kf6 {[%clk 0:00:05]} 37. Rf1+ {[%clk 0:00:35]}  Kg5 {[%clk 0:00:05]} 38. Kd3 {[%clk 0:00:32]}  Bxg2 {[%clk 0:00:05]} 39. Re1 {[%clk 0:00:30]}  Bd5 {[%clk 0:00:05]} 40. Kd4 {[%clk 0:00:28]}  g3 {[%clk 0:00:06]} 41. Be4 {[%clk 0:00:28]}  Bxe4 {[%clk 0:00:03]} 42. Kxe4 {[%clk 0:00:28]}  Kg4 {[%clk 0:00:03]} 43. Ke3 {[%clk 0:00:25]}  Bc5+ {[%clk 0:00:01]} 44. Ke2 {[%clk 0:00:26]}  g2 {[%clk 0:00:02]} 45. b4 {[%clk 0:00:25]}  g1=Q {[%clk 0:00:01]} 46. Rxg1+ {[%clk 0:00:20]}  Bxg1 {[%clk 0:00:02]} 47. Kd3 {[%clk 0:00:21]}  Kf5 {[%clk 0:00:03]} 48. Kc4 {[%clk 0:00:22]}  e5 {[%clk 0:00:03]} 49. Kb5 {[%clk 0:00:22]}  e4 {[%clk 0:00:03]} 50. Kc4 {[%clk 0:00:23]}  e3 {[%clk 0:00:04]} 51. b5 {[%clk 0:00:24]}  e2 {[%clk 0:00:04]} 52. Kd3 {[%clk 0:00:24]}  e1=Q {[%clk 0:00:04]} 0-1


[Site "https://www.chess.com"]

[Event "Titled Tuesday Blitz May 30 Late 2023"]
[White "Baches Garcia, Guillermo"]
[Black "Sarkar, Justin"]
[WhiteFideId "2209764"]
[BlackFideId "2010011"]
[WhiteElo "2505"]
[BlackElo "2168"]
[Result "1-0"]
[Round "02"]
[TimeControl "180+2"]
[Date "2023.05.31"]
[WhiteClock "0:00:16"]
[BlackClock "0:00:01"]

1. e4 {[%clk 0:03:00]}  c5 {[%clk 0:02:50]} 2. Nf3 {[%clk 0:03:01]}  d6 {[%clk 0:02:49]} 3. d4 {[%clk 0:03:01]}  cxd4 {[%clk 0:02:47]} 4. Nxd4 {[%clk 0:03:01]}  Nf6 {[%clk 0:02:47]} 5. Nc3 {[%clk 0:03:02]}  a6 {[%clk 0:02:46]} 6. f3 {[%clk 0:03:02]}  e5 {[%clk 0:02:44]} 7. Nb3 {[%clk 0:03:01]}  Be6 {[%clk 0:02:43]} 8. Be3 {[%clk 0:03:01]}  h5 {[%clk 0:02:43]} 9. Nd5 {[%clk 0:02:59]}  Bxd5 {[%clk 0:02:41]} 10. exd5 {[%clk 0:02:59]}  Nbd7 {[%clk 0:02:41]} 11. Qd2 {[%clk 0:02:54]}  g6 {[%clk 0:02:35]} 12. O-O-O {[%clk 0:02:51]}  Bg7 {[%clk 0:02:32]} 13. h3 {[%clk 0:02:38]}  Rc8 {[%clk 0:02:23]} 14. Kb1 {[%clk 0:02:34]}  h4 {[%clk 0:02:08]} 15. Be2 {[%clk 0:02:20]}  Nh5 {[%clk 0:02:04]} 16. Rhe1 {[%clk 0:02:11]}  Kf8 {[%clk 0:01:42]} 17. c4 {[%clk 0:02:05]}  b6 {[%clk 0:01:37]} 18. Rc1 {[%clk 0:01:56]}  a5 {[%clk 0:01:33]} 19. Na1 {[%clk 0:01:46]}  Nc5 {[%clk 0:01:29]} 20. Nc2 {[%clk 0:01:45]}  f5 {[%clk 0:01:18]} 21. Na3 {[%clk 0:01:43]}  Kf7 {[%clk 0:01:14]} 22. Nb5 {[%clk 0:01:42]}  Qe7 {[%clk 0:00:57]} 23. Bd1 {[%clk 0:01:24]}  Rhd8 {[%clk 0:00:45]} 24. Bc2 {[%clk 0:01:14]}  Kg8 {[%clk 0:00:34]} 25. a3 {[%clk 0:01:00]}  a4 {[%clk 0:00:16]} 26. Ka2 {[%clk 0:01:00]}  Kh7 {[%clk 0:00:14]} 27. Re2 {[%clk 0:00:49]}  Qf8 {[%clk 0:00:13]} 28. Bg5 {[%clk 0:00:40]}  Bh6 {[%clk 0:00:10]} 29. Bxh6 {[%clk 0:00:37]}  Qxh6 {[%clk 0:00:09]} 30. Qd1 {[%clk 0:00:33]}  Ng3 {[%clk 0:00:07]} 31. Re1 {[%clk 0:00:31]}  Ra8 {[%clk 0:00:05]} 32. Nc3 {[%clk 0:00:24]}  Qf4 {[%clk 0:00:04]} 33. Bd3 {[%clk 0:00:22]}  Qd4 {[%clk 0:00:03]} 34. Bf1 {[%clk 0:00:20]}  Qf2 {[%clk 0:00:03]} 35. Rc2 {[%clk 0:00:18]}  Qd4 {[%clk 0:00:01]} 36. Nb5 {[%clk 0:00:16]} 1-0


[Site "https://www.chess.com"]

[Event "Titled Tuesday Blitz May 30 Late 2023"]
[White "lluiss"]
[Black "Liu, Casper"]
[BlackFideId "1454153"]
[WhiteElo "2303"]
[BlackElo "2221"]
[Result "0-1"]
[Round "02"]
[TimeControl "180+2"]
[Date "2023.05.31"]
[WhiteClock "0:00:20"]
[BlackClock "0:01:30"]

1. Nf3 {[%clk 0:03:00]}  d6 {[%clk 0:02:59]} 2. d4 {[%clk 0:03:00]}  Nc6 {[%clk 0:02:58]} 3. g3 {[%clk 0:02:58]}  Bd7 {[%clk 0:02:58]} 4. Bg2 {[%clk 0:02:57]}  Qc8 {[%clk 0:02:59]} 5. d5 {[%clk 0:02:52]}  Ne5 {[%clk 0:02:58]} 6. Nxe5 {[%clk 0:02:51]}  dxe5 {[%clk 0:02:59]} 7. h3 {[%clk 0:02:45]}  Nf6 {[%clk 0:02:59]} 8. c4 {[%clk 0:02:45]}  h5 {[%clk 0:02:58]} 9. Qb3 {[%clk 0:02:41]}  h4 {[%clk 0:02:55]} 10. g4 {[%clk 0:02:39]}  g6 {[%clk 0:02:55]} 11. Bg5 {[%clk 0:02:36]}  Bg7 {[%clk 0:02:56]} 12. d6 {[%clk 0:02:35]}  Rb8 {[%clk 0:02:35]} 13. dxe7 {[%clk 0:02:34]}  b5 {[%clk 0:02:31]} 14. c5 {[%clk 0:02:30]}  Kxe7 {[%clk 0:02:28]} 15. Nc3 {[%clk 0:02:27]}  c6 {[%clk 0:02:26]} 16. Ne4 {[%clk 0:02:24]}  Be6 {[%clk 0:02:23]} 17. Qc3 {[%clk 0:02:21]}  Qc7 {[%clk 0:02:15]} 18. Nd6 {[%clk 0:02:20]}  Kf8 {[%clk 0:02:14]} 19. e4 {[%clk 0:01:23]}  b4 {[%clk 0:02:07]} 20. Qe3 {[%clk 0:01:15]}  Nd7 {[%clk 0:01:58]} 21. Qc1 {[%clk 0:00:29]}  Kg8 {[%clk 0:01:37]} 22. Be3 {[%clk 0:00:27]}  Bf8 {[%clk 0:01:37]} 23. Qd2 {[%clk 0:00:24]}  Qa5 {[%clk 0:01:30]} 24. O-O {[%clk 0:00:23]}  Nxc5 {[%clk 0:01:31]} 25. Nc4 {[%clk 0:00:20]}  Bxc4 {[%clk 0:01:30]} 0-1


[Site "https://www.chess.com"]

[Event "Titled Tuesday Blitz May 30 Late 2023"]
[White "Remolar Gallen, Jose"]
[Black "Dragomirescu, Calin"]
[WhiteFideId "2215187"]
[BlackFideId "1200895"]
[WhiteElo "2223"]
[BlackElo "2010"]
[Result "0-1"]
[Round "02"]
[TimeControl "180+2"]
[Date "2023.05.31"]
[WhiteClock "0:00:03"]
[BlackClock "0:00:42"]

1. e4 {[%clk 0:02:57]}  g6 {[%clk 0:02:59]} 2. d4 {[%clk 0:02:56]}  Bg7 {[%clk 0:03:00]} 3. Nc3 {[%clk 0:02:57]}  d6 {[%clk 0:03:00]} 4. f4 {[%clk 0:02:56]}  Nf6 {[%clk 0:03:00]} 5. Nf3 {[%clk 0:02:57]}  O-O {[%clk 0:03:00]} 6. Bd3 {[%clk 0:02:57]}  Na6 {[%clk 0:02:59]} 7. O-O {[%clk 0:02:54]}  c5 {[%clk 0:02:59]} 8. e5 {[%clk 0:02:46]}  Nd7 {[%clk 0:02:58]} 9. Ne4 {[%clk 0:01:59]}  cxd4 {[%clk 0:02:53]} 10. exd6 {[%clk 0:01:57]}  exd6 {[%clk 0:02:53]} 11. Nxd6 {[%clk 0:01:55]}  Ndc5 {[%clk 0:02:51]} 12. Nxc8 {[%clk 0:01:52]}  Rxc8 {[%clk 0:02:51]} 13. Bd2 {[%clk 0:01:46]}  Nxd3 {[%clk 0:02:50]} 14. cxd3 {[%clk 0:01:46]}  Nc5 {[%clk 0:02:49]} 15. Bb4 {[%clk 0:01:44]}  b6 {[%clk 0:02:44]} 16. Rc1 {[%clk 0:01:38]}  Re8 {[%clk 0:02:43]} 17. Bxc5 {[%clk 0:01:04]}  bxc5 {[%clk 0:02:38]} 18. Re1 {[%clk 0:00:59]}  Qd5 {[%clk 0:02:35]} 19. Qc2 {[%clk 0:00:55]}  Qxa2 {[%clk 0:02:27]} 20. Rxe8+ {[%clk 0:00:53]}  Rxe8 {[%clk 0:02:25]} 21. Re1 {[%clk 0:00:16]}  Rxe1+ {[%clk 0:02:18]} 22. Nxe1 {[%clk 0:00:16]}  Qd5 {[%clk 0:02:17]} 23. Nf3 {[%clk 0:00:16]}  h5 {[%clk 0:02:15]} 24. Nd2 {[%clk 0:00:15]}  Bh6 {[%clk 0:02:13]} 25. g3 {[%clk 0:00:15]}  h4 {[%clk 0:02:12]} 26. Ne4 {[%clk 0:00:15]}  Kg7 {[%clk 0:02:06]} 27. Qxc5 {[%clk 0:00:15]}  Qxc5 {[%clk 0:01:58]} 28. Nxc5 {[%clk 0:00:16]}  hxg3 {[%clk 0:01:58]} 29. hxg3 {[%clk 0:00:17]}  g5 {[%clk 0:01:48]} 30. f5 {[%clk 0:00:09]}  g4 {[%clk 0:01:44]} 31. Ne4 {[%clk 0:00:09]}  Kf8 {[%clk 0:01:35]} 32. Kf2 {[%clk 0:00:07]}  Ke7 {[%clk 0:01:36]} 33. Ke2 {[%clk 0:00:06]}  Be3 {[%clk 0:01:29]} 34. Kd1 {[%clk 0:00:04]}  a6 {[%clk 0:01:18]} 35. Kc2 {[%clk 0:00:05]}  Kd7 {[%clk 0:01:12]} 36. Kb3 {[%clk 0:00:05]}  Kc6 {[%clk 0:01:13]} 37. Kc4 {[%clk 0:00:05]}  Kb6 {[%clk 0:01:04]} 38. b4 {[%clk 0:00:04]}  Kc6 {[%clk 0:01:01]} 39. Nc5 {[%clk 0:00:03]}  Bf2 {[%clk 0:00:58]} 40. Ne4 {[%clk 0:00:02]}  Be1 {[%clk 0:00:55]} 41. Kb3 {[%clk 0:00:01]}  Kd5 {[%clk 0:00:53]} 42. Ka4 {[%clk 0:00:01]}  Ke5 {[%clk 0:00:50]} 43. Ka5 {[%clk 0:00:01]}  Kxf5 {[%clk 0:00:50]} 44. Kxa6 {[%clk 0:00:01]}  Bxb4 {[%clk 0:00:49]} 45. Kb5 {[%clk 0:00:01]}  Be1 {[%clk 0:00:49]} 46. Kc4 {[%clk 0:00:02]}  Ke5 {[%clk 0:00:48]} 47. Kc5 {[%clk 0:00:02]}  f5 {[%clk 0:00:48]} 48. Nd6 {[%clk 0:00:01]}  Bxg3 {[%clk 0:00:48]} 49. Nc4+ {[%clk 0:00:02]}  Kf4 {[%clk 0:00:46]} 50. Kxd4 {[%clk 0:00:03]}  Bf2+ {[%clk 0:00:46]} 51. Kc3 {[%clk 0:00:03]}  g3 {[%clk 0:00:46]} 52. d4 {[%clk 0:00:01]}  g2 {[%clk 0:00:46]} 53. d5 {[%clk 0:00:02]}  g1=Q {[%clk 0:00:46]} 54. d6 {[%clk 0:00:02]}  Bd4+ {[%clk 0:00:46]} 55. Kb3 {[%clk 0:00:03]}  Qb1+ {[%clk 0:00:43]} 56. Ka4 {[%clk 0:00:03]}  Qc2+ {[%clk 0:00:42]} 57. Kb5 {[%clk 0:00:03]}  Qb3+ {[%clk 0:00:42]} 58. Kc6 {[%clk 0:00:03]}  Qxc4+ {[%clk 0:00:42]} 0-1


[Site "https://www.chess.com"]

[Event "Titled Tuesday Blitz May 30 Late 2023"]
[White "StarkyNZ"]
[Black "Kubicka, Anna"]
[BlackFideId "1152254"]
[WhiteElo "2300"]
[BlackElo "2144"]
[Result "1/2-1/2"]
[Round "02"]
[TimeControl "180+2"]
[Date "2023.05.31"]
[WhiteClock "0:01:18"]
[BlackClock "0:01:41"]

1. d4 {[%clk 0:03:00]}  Nf6 {[%clk 0:02:59]} 2. c4 {[%clk 0:03:01]}  c5 {[%clk 0:03:00]} 3. d5 {[%clk 0:03:01]}  e6 {[%clk 0:03:00]} 4. Nc3 {[%clk 0:03:01]}  exd5 {[%clk 0:03:01]} 5. cxd5 {[%clk 0:03:02]}  d6 {[%clk 0:03:01]} 6. e4 {[%clk 0:03:02]}  g6 {[%clk 0:03:02]} 7. Nf3 {[%clk 0:03:02]}  Bg7 {[%clk 0:03:02]} 8. Bb5+ {[%clk 0:03:01]}  Bd7 {[%clk 0:03:02]} 9. Bd3 {[%clk 0:02:57]}  O-O {[%clk 0:03:01]} 10. a4 {[%clk 0:02:57]}  Na6 {[%clk 0:02:59]} 11. Bf4 {[%clk 0:02:56]}  Bg4 {[%clk 0:02:59]} 12. h3 {[%clk 0:02:54]}  Bxf3 {[%clk 0:02:59]} 13. Qxf3 {[%clk 0:02:55]}  Nb4 {[%clk 0:03:00]} 14. O-O {[%clk 0:02:49]}  Nxd3 {[%clk 0:02:59]} 15. Qxd3 {[%clk 0:02:49]}  Re8 {[%clk 0:03:00]} 16. Rfe1 {[%clk 0:02:50]}  a6 {[%clk 0:02:59]} 17. a5 {[%clk 0:02:50]}  Nh5 {[%clk 0:02:58]} 18. Bh2 {[%clk 0:02:45]}  Be5 {[%clk 0:02:57]} 19. Bxe5 {[%clk 0:02:37]}  Rxe5 {[%clk 0:02:58]} 20. Qf3 {[%clk 0:02:24]}  Qg5 {[%clk 0:02:54]} 21. Re3 {[%clk 0:02:17]}  Rae8 {[%clk 0:02:50]} 22. Rae1 {[%clk 0:02:16]}  Nf4 {[%clk 0:02:41]} 23. Na4 {[%clk 0:02:13]}  f5 {[%clk 0:02:37]} 24. exf5 {[%clk 0:02:06]}  Rxe3 {[%clk 0:02:37]} 25. Rxe3 {[%clk 0:02:05]}  Rxe3 {[%clk 0:02:36]} 26. fxe3 {[%clk 0:02:06]}  Nxg2 {[%clk 0:02:13]} 27. Qxg2 {[%clk 0:01:56]}  Qxe3+ {[%clk 0:02:13]} 28. Kh1 {[%clk 0:01:49]}  Qe1+ {[%clk 0:02:10]} 29. Kh2 {[%clk 0:01:33]}  Qe5+ {[%clk 0:02:10]} 30. Kh1 {[%clk 0:01:20]}  Qe1+ {[%clk 0:01:52]} 31. Kh2 {[%clk 0:01:18]}  Qe5+ {[%clk 0:01:44]} 32. Kh1 {[%clk 0:01:18]}  Qe1+ {[%clk 0:01:41]} 1/2-1/2


[Site "https://www.chess.com"]